Workbook

Sheet Membership of sectors
A1: Figure 6.4: Membership of various sectors, 1950s-2000s
B3: 1951 | C3: 1952 | D3: 1953 | E3: 1954 | F3: 1955 | G3: 1956 | H3: 1957 | I3: 1958 | J3: 1959 | K3: 1960 | L3: 1961 | M3: 1962 | N3: 1963 | O3: 1964 | P3: 1965 | Q3: 1966 | R3: 1967 | S3: 1968 | T3: 1969 | U3: 1970 | V3: 1971 | W3: 1972 | X3: 1973 | Y3: 1974 | Z3: 1975 | AA3: 1976 | AB3: 1977 | AC3: 1978 | AD3: 1979 | AE3: 1980 | AF3: 1981 | AG3: 1982 | AH3: 1983 | AI3: 1984 | AJ3: 1985 | AK3: 1986 | AL3: 1987 | AM3: 1988 | AN3: 1989 | AO3: 1990 | AP3: 1991 | AQ3: 1992 | AR3: 1993 | AS3: 1994 | AT3: 1995 | AU3: 1996 | AV3: 1997 | AW3: 1998 | AX3: 1999 | AY3: 2000 | AZ3: 2001 | BA3: 2002 | BB3: 2003 | BC3: 2004 | BD3: 2005 | BE3: 2006 | BF3: 2007 | BG3: 2008 | BH3: 2009
A4: Youth organizations
A5: Cub Scouts | B5: 192 | L5: 245 | Q5: 246 | V5: 265 | AA5: 296 | AF5: 309 | AK5: 332 | AP5: 349 | BH5: 234
A6: Brownies | B6: 184 | L6: 284 | Q6: 329 | V6: 376 | AA6: 410 | AF6: 427 | AK6: 384 | AP6: 385 | BH6: 331
A7: Scouts | B7: 237 | L7: 272 | Q7: 242 | V7: 215 | AA7: 225 | AF7: 234 | AK7: 213 | AP7: 192 | BH7: 134
A8: Girl Guides | B8: 221 | L8: 266 | Q8: 244 | V8: 316 | AA8: 344 | AF8: 348 | AK8: 282 | AP8: 225 | BH8: 146
A9: Sea Cadet Corps | B9: 19 | L9: 18 | Q9: 18 | V9: 18 | AA9: 19 | AF9: 19 | AK9: 17 | AP9: 16 | BH9: 14
A10: Army Cadet Corps | B10: 64 | L10: 44 | Q10: 38 | V10: 39 | AA10: 42 | AF10: 46 | AK10: 43 | AP10: 39 | BH10: 45
A11: Air Training Corps | B11: 38 | L11: 30 | Q11: 26 | V11: 33 | AA11: 34 | AF11: 35 | AK11: 35 | AP11: 34 | BH11: 41
A12: Combined Cadet Force | B12: 58 | L12: 76 | Q12: 49 | V12: 45 | AA12: 43 | AF12: 44 | AK12: 43 | AP12: 40 | BH12: 42
A13: Boys Brigade | B13: 142 | L13: 159 | Q13: 143 | V13: 140 | AA13: 137 | AF13: 154 | AK13: 120 | AP13: 103 | BH13: 53
A14: Methodist Association of Youth Clubs | B14: 101 | L14: 110 | Q14: 121 | V14: 115 | AA14: 131 | AF14: 127 | AK14: 100 | AP14: 40 | BH14: 34
A15: Boys and Girl Youth Clubs (continuous) | B15: 152 | L15: 136 | Q15: 239 | V15: 319 | AA15: 519 | AF15: 771 | AK15: 595 | AP15: 600 | BH15: 400
A16: Girls Brigade | Q16: 98 | V16: 104 | AA16: 100 | AF16: 99.5 | AK16: 83 | AP16: 40 | BH16: 21
A17: Total | B17: =SUM(B5:B14) -> 1256 | L17: =SUM(L5:L14) -> 1504 | Q17: =SUM(Q5:Q16) -> 1793 | V17: =SUM(V5:V16) -> 1985 | AA17: =SUM(AA5:AA16) -> 2300 | AF17: =SUM(AF5:AF16) -> 2613.5 | AK17: =SUM(AK5:AK16) -> 2247 | AP17: =SUM(AP5:AP16) -> 2063 | BH17: =SUM(BH5:BH16) -> 1495
A18: Youth | B18: 1256 | L18: 1504 | Q18: 1793 | V18: 1985 | AA18: 2300 | AF18: 2613.5 | AK18: 2247 | AP18: 2063 | BH18: 1495
A20: Traditional women’s organizations
A21: Mother’s Union | V21: 308 | AF21: 210 | AK21: 188 | AP21: 169 | BH21: 165
A22: National Federation of Women’s Institutes | V22: 440 | AF22: 378 | AK22: 347 | AP22: 310 | BH22: 205
A23: National Women’s Register | V23: 15 | AF23: 24 | AK23: 23 | AP23: 14 | BH23: 7.3
A24: National Union of Townswomen’s Guilds | V24: 216 | AF24: 155 | AK24: 150 | AP24: 100 | BH24: 34
A25: Church of Scotland Women’s Guild | V25: 127 | AF25: 86 | AK25: 68 | AP25: 66 | BH25: 30
A26: Scottish Women’s Rural Institutes | V26: 58 | AF26: 50 | AK26: 42 | AP26: 36 | BH26: 22
A27: Association of Inner Wheel clubs | V27: 30 | AF27: 34 | AK27: 36 | AP27: 35 | BH27: 22
A28: National Council of Women | V28: 6 | AF28: 3 | AK28: 2 | AP28: 3 | BH28: 3
A29: total (calculated) | V29: =SUM(V21:V28) -> 1200 | AA29: =(V29+AF29)/2 -> 1070 | AF29: =SUM(AF21:AF28) -> 940 | AK29: =SUM(AK21:AK28) -> 856 | AP29: =SUM(AP21:AP28) -> 733 | BH29: =SUM(BH21:BH28) -> 488.3
A30: Women's | V30: 1200 | AF30: 940 | AK30: 856 | AP30: 733 | BH30: 488.3
A33: Environmental
A34: Civic Trust | V34: 214 | AF34: 244 | AK34: 241 | AP34: 222 | BH34: 250
A35: Conservation Society / Trust | V35: 6 | AF35: 5 | AK35: 4 | AP35: 3
A36: CPRE | V36: 21 | AF36: 29 | AK36: 32 | AP36: 45 | BH36: 60
A37: FoE (Eng & Wales) | V37: 1 | AF37: 18 | AK37: 28 | AP37: 111 | BH37: 100
A38: Wildlife Trusts | V38: 64 | AF38: 142 | AK38: 179 | AP38: 233 | BH38: 765
A39: RSPB | V39: 98 | AF39: 441 | AK39: 506 | AP39: 852 | BH39: 1057
A40: WWF | V40: 12 | AF40: 60 | AK40: 106 | AP40: 227 | BH40: 330
A41: Total | V41: =SUM(V34:V40) -> 416 | AF41: =SUM(AF34:AF40) -> 939 | AK41: =SUM(AK34:AK40) -> 1096 | AP41: =SUM(AP34:AP40) -> 1693 | BH41: =SUM(BH34:BH40) -> 2562
A42: Environmental | V42: 416 | AF42: 939 | AK42: 1096 | AP42: 1693 | BH42: 2562
A45: Service organizations
A46: National Association of Round Tables of GB and Ireland | V46: 29 | AF46: 30 | AP46: 22 | BH46: 6.5
A47: Rotary International in GB and Ireland | V47: 50 | AF47: 60 | AK47: 63 | AP47: 65 | BH47: 55
A48: Royal British Legion (1971-) | V48: 750 | AF48: 937 | AK48: 858 | AP48: 660 | BH48: 380
A49: Royal MENCAP Society (2002-) | V49: 40 | AK49: 55 | AP49: 75 | BH49: 50
A50: St. John Ambulance Brigade | V50: 91 | AF50: 77 | AK50: 60 | AP50: 55 | BH50: 43
A51: Total | V51: =SUM(V46:V50) -> 960 | AA51: =(V51+AF51)/2 -> 1032 | AF51: =SUM(AF46:AF50) -> 1104 | AK51: =SUM(AK46:AK50) -> 1036 | AP51: =SUM(AP46:AP50) -> 877 | BH51: =SUM(BH46:BH50) -> 534.5
A52: Service | V52: 960 | AF52: 1104 | AK52: 1036 | AP52: 877 | BH52: 534.5
A54: Camping Club of GB and Ireland | B54: 14 | L54: 52 | Q54: 92 | V54: 110 | AA54: 175 | AF54: 178 | AK54: =$AF54+(($BH54-$AF54)/3) -> 252 | AP54: =$AF54+(($BH54-$AF54)*2/3) -> 326 | BH54: 400
A55: Caravan Club | B55: 11 | L55: 44 | Q55: 41 | V55: 84 | AA55: 174 | AF55: 193 | AK55: 252 | AP55: 311 | BH55: 370
A56: Youth Hostel Association | B56: 237 | L56: 219 | Q56: 265 | V56: 264 | AA56: 318 | AF56: 316 | AK56: 281.6666667 | AP56: 247.3333333 | BH56: 213
A57: Ramblers Association | B57: 9 | L57: 11 | Q57: 14 | V57: 22 | AA57: 30 | AF57: 38 | AK57: 71 | AP57: 104 | BH57: 137
A58: British Horse Society | B58: 4 | L58: 6 | Q58: 10 | V58: 17 | AA58: 22 | AF58: 33 | AK58: 44.33333333 | AP58: 55.66666667 | BH58: 67
A59: The Pony Club | B59: 20 | L59: 30 | Q59: 29 | V59: 33 | AA59: 48 | AF59: 56 | AK59: 74 | AP59: 92 | BH59: 110
A60: British Canoe Union | B60: 1 | L60: 4 | Q60: 3 | V60: 5 | AA60: 6 | AF60: 10 | AK60: 15.66666667 | AP60: 21.33333333 | BH60: 27
A61: Royal Yachting Association | B61: 1 | L61: 11 | Q61: 22 | V61: 31 | AA61: 49 | AF61: 65 | AK61: 76.66666667 | AP61: 88.33333333 | BH61: 100
A62: British Sub-Aqua Club | B62: 2 | L62: 4 | Q62: 7 | V62: 14 | AA62: 25 | AF62: 28 | AK62: 30.33333333 | AP62: 32.66666667 | BH62: 35
A63: British Cycling Federation | B63: 67 | L63: 21 | Q63: 15 | V63: 11 | AA63: 11 | AF63: 16 | AK63: 19 | AP63: 22 | BH63: 25
A64: Cyclists Touring Club | B64: 54 | L64: 26 | Q64: 22 | V64: 19 | AA64: 26 | AF64: 38 | AK64: 45.33333333 | AP64: 52.66666667 | BH64: 60
A65: British Field Sports Society | B65: 27 | L65: 20 | Q65: 18 | V65: 21 | AA65: 50 | AF65: 57 | AK65: 73.66666667 | AP65: 90.33333333 | BH65: 107
A66: Total | B66: =SUM(B54:B65) -> 447 | L66: =SUM(L54:L65) -> 448 | Q66: =SUM(Q54:Q65) -> 538 | V66: =SUM(V54:V65) -> 631 | AA66: =SUM(AA54:AA65) -> 934 | AF66: =SUM(AF54:AF65) -> 1028 | AK66: =SUM(AK54:AK65) -> 1235.666667 | AP66: =SUM(AP54:AP65) -> 1443.333333 | BH66: =SUM(BH54:BH65) -> 1651
A67: Outdoor | B67: 447 | L67: 448 | Q67: 538 | V67: 631 | AA67: 934 | AF67: 1028 | AK67: 1235.666667 | AP67: 1443.333333 | BH67: 1651
A69: Note 1: The number of beaver scouts have been added to the number of Cub scouts for certain years, when appropriate.
A70: Note 2: Some Service organisations, for example the Red Cross, have been omitted from this table, even though there some data on their membership had been published in Social Trend. Unfortunately, the data was not consistent across the period, so could not be used for comparison purposes.
A72: Source: compilation of figures from many different sources, principally from Social Trends (various years), P. A. Hall, 'Social Capital in Britain', British Journal of Political Science, 29 (1999), pp. 417-461 and organisations concerned.
